bitfinex-derivatives/quotes_ETHF0:USTF0_20250911
["timestamp","ask_amount","ask_price","bid_price","bid_amount"]
[1757620264854,0.8534,4431.5,4431.0,0.1278]
[1757620265054,0.8534,4431.5,4431.1,0.3183]
[1757620265554,0.7038,4431.4,4431.3,0.5269]
[1757620266254,0.4942,4430.6,4430.5,0.8595]
[1757620266450,0.1968,4430.7,4430.6,0.7317]
[1757620266650,0.4942,4430.7,4430.6,0.7317]
[1757620269954,0.7038,4430.7,4430.3,0.3183]
[1757620270152,0.7038,4430.7,4430.4,0.3183]
[1757620270354,0.7038,4430.7,4430.6,0.5269]
[1757620271058,0.7038,4430.7,4430.6,0.7317]
[1757620271764,0.1258,4431.5,4430.6,0.4134]
[1757620272057,0.22568001,4431.4,4430.2,0.228]
[1757620272256,0.7038,4431.3,4430.6,0.3183]
[1757620275160,0.7038,4431.3,4431.2,0.7317]
[1757620275658,0.4232,4432.0,4430.3,0.3183]
[1757620275955,0.2974,4431.8,4430.5,0.1205]
[1757620276161,0.2974,4431.6,4430.6,0.3183]
[1757620276364,0.2974,4431.4,4430.6,0.3183]
[1757620277151,0.7038,4431.4,4431.3,0.5269]
[1757620280059,1.26874286,4431.4,4431.3,0.5269]
[1757620281962,1.26874286,4431.4,4431.3,0.2086]
[1757620282560,1.26874286,4431.4,4431.3,0.5269]
[1757620288374,1.26874286,4431.4,4431.1,0.3141]
[1757620288573,0.7035,4431.2,4431.1,0.5116]
[1757620288771,1.26844286,4431.2,4431.1,0.5116]
[1757620290374,0.7035,4431.2,4431.1,0.5116]
[1757620292069,0.7035,4431.2,4430.5,0.1205]
[1757620292377,0.7035,4431.2,4431.1,0.5116]
[1757620293079,0.7035,4431.2,4431.1,0.7204]
[1757620293277,1.26860856,4431.2,4431.1,0.7204]
[1757620294975,1.26862975,4431.2,4431.1,0.7204]
[1757620296679,0.7035,4431.2,4431.1,0.7204]
[1757620300382,0.4939,4431.9,4431.8,0.7204]
[1757620300581,0.203,4431.9,4431.8,0.7204]
[1757620301175,0.2909,4432.9,4431.8,0.4063]
[1757620301478,0.7035,4432.7,4432.6,0.5116]
[1757620301688,1.27782572,4432.7,4432.6,0.5116]
[1757620302778,1.27782572,4432.7,4432.1,0.3141]
[1757620303082,0.4939,4432.2,4432.1,0.7204]
[1757620303480,0.7035,4432.2,4432.1,0.7204]
[1757620303680,0.7035,4432.2,4432.1,0.5116]
[1757620303987,0.7035,4432.2,4432.1,0.7204]
[1757620313589,0.4939,4432.2,4432.1,0.7204]
[1757620313787,0.203,4432.2,4432.1,0.7204]
[1757620314784,0.2909,4432.4,4432.1,0.7204]
[1757620314992,0.2909,4432.4,4432.2,0.3141]
[1757620316189,0.1258,4433.0,4432.5,0.1175]
[1757620316190,0.2909,4432.9,4432.5,0.1175]
[1757620316383,0.92911,4432.9,4432.8,0.7204]
[1757620316585,1.6924667,4432.9,4432.8,0.7204]
[1757620316792,1.4668567,4432.9,4432.8,0.7204]
[1757620317789,1.46683984,4432.9,4432.8,0.7204]
[1757620318888,0.19030107,4432.9,4432.8,0.7204]
[1757620319193,0.4976,4433.0,4432.9,0.7283]
[1757620319499,1.07051668,4433.0,4432.9,0.7283]
[1757620319793,1.28341668,4433.0,4432.9,0.7283]
[1757620320192,5.40171668,4433.0,4432.1,0.3196]
[1757620320496,0.196,4432.2,4432.1,0.7283]
[1757620321392,0.1183,4433.0,4432.1,0.7283]
[1757620321588,0.7105,4432.8,4432.7,0.7283]
[1757620325400,1.28360942,4432.8,4432.7,0.7283]
[1757620326095,0.7105,4432.8,4432.1,0.3196]
[1757620327400,0.7105,4432.2,4432.1,0.7283]
[1757620327597,0.7105,4432.2,4431.6,0.3196]
[1757620328299,0.1183,4432.5,4432.0,0.2031]
[1757620328300,0.3016,4432.1,4432.0,0.2031]
[1757620328488,0.7105,4432.1,4432.0,0.2031]
[1757620328697,0.7105,4432.1,4431.8,0.3196]
[1757620329001,0.7105,4431.9,4431.8,0.5227]
[1757620330198,1.28664282,4431.9,4431.8,0.7283]
[1757620330897,1.28664282,4431.9,4431.2,0.3196]
[1757620330898,0.98504282,4431.9,4431.2,0.3196]
[1757620331103,0.7105,4431.3,4431.2,0.95395]
[1757620331299,0.7105,4431.3,4431.2,0.7283]
[1757620332198,1.28654526,4431.3,4431.2,0.7283]
[1757620333497,0.7105,4431.3,4431.2,0.7283]
[1757620334099,0.7105,4430.9,4430.8,0.7283]
[1757620334291,0.7105,4430.9,4430.1,0.3196]
[1757620334292,0.196,4430.2,4430.1,0.3196]
[1757620334492,0.7105,4430.2,4430.1,0.2031]
[1757620334798,0.7105,4430.2,4429.6,0.3196]
[1757620334999,0.1183,4430.0,4429.0,0.1239]
[1757620335199,0.196,4429.2,4429.1,0.7283]
[1757620335501,0.4089,4429.2,4429.1,0.7283]
[1757620335694,0.7105,4429.2,4429.1,0.7283]
[1757620339996,0.3016,4429.6,4429.1,0.7283]
[1757620340208,0.7105,4429.9,4429.8,0.5227]
[1757620341202,0.7105,4429.9,4429.0,0.1239]
[1757620341397,0.7105,4429.9,4429.1,0.3196]
[1757620341705,0.2129,4428.6,4428.5,0.2031]
[1757620341896,0.7105,4428.6,4428.3,0.3196]
[1757620342099,0.7105,4428.4,4428.3,0.5227]
[1757620344307,0.7105,4428.4,4428.3,0.7283]
[1757620345299,0.196,4428.4,4428.3,0.7283]
[1757620346008,0.4976,4428.4,4428.3,0.7283]
[1757620346302,0.7105,4428.4,4428.3,0.7283]
[1757620346607,0.7105,4428.4,4427.8,0.227]
[1757620347001,0.7105,4428.4,4427.9,0.3196]
[1757620347206,0.7105,4428.4,4427.8,0.227]
[1757620347407,0.4223,4427.9,4427.8,0.6309]
[1757620347600,0.7364,4427.9,4427.8,0.6986]
[1757620348201,0.2069,4427.9,4427.8,0.6986]
[1757620348605,0.1183,4428.5,4427.8,0.4039]
[1757620348812,0.7364,4428.4,4428.3,0.6986]
[1757620349309,0.2069,4428.4,4428.3,0.6986]
[1757620349507,0.2069,4428.8,4428.7,0.6986]
[1757620350109,0.521,4428.8,4428.7,0.6986]
[1757620351306,0.7364,4428.8,4428.7,0.6986]
[1757620353408,0.521,4429.3,4429.2,0.2048]
[1757620353713,0.7364,4429.3,4429.2,0.6986]
[1757620356505,0.7364,4429.3,4429.2,0.2048]
[1757620358314,0.7364,4429.3,4429.2,0.4995]
[1757620359716,0.3141,4429.7,4429.5,0.1214]
[1757620359915,0.2069,4429.8,4429.7,0.6986]
[1757620361507,0.521,4430.1,4430.0,0.82]
[1757620361705,0.7364,4431.0,4430.9,0.6986]
[1757620361904,0.8568,4431.0,4430.6,0.2947]
[1757620362109,0.8568,4431.0,4430.5,0.1214]
[1757620362414,0.8568,4431.0,4430.6,0.2947]
[1757620362613,0.8568,4431.0,4430.9,0.2048]
[1757620365505,0.8568,4431.0,4430.9,0.4995]
[1757620370126,0.8568,4431.0,4430.9,0.2048]
[1757620370324,1.43032734,4431.0,4430.1,0.2947]
[1757620370524,0.3141,4430.8,4430.1,0.2947]
[1757620370719,0.7364,4430.8,4430.7,0.4995]
[1757620371722,0.7364,4430.8,4430.7,0.6986]
[1757620373222,0.521,4431.2,4431.1,0.6986]
[1757620373517,1.30967268,4431.2,4430.5,0.1214]
[1757620373723,0.57329677,4431.1,4430.6,0.2947]
[1757620374027,0.7364,4431.2,4430.6,0.2947]
[1757620374318,0.7364,4431.2,4431.1,0.2048]
[1757620374520,1.50080596,4431.2,4431.1,0.2048]
[1757620375023,1.50080596,4431.2,4430.9,0.2947]
[1757620375024,0.1204,4431.0,4430.9,0.2947]
[1757620375223,0.4223,4430.7,4430.6,0.6986]
[1757620375425,0.7364,4430.7,4430.6,0.6986]
[1757620377028,0.7364,4430.7,4430.6,0.2048]
[1757620377428,0.7364,4430.7,4430.6,0.4995]
[1757620378927,0.7364,4430.7,4430.1,0.2923]
[1757620379723,0.7364,4430.7,4430.6,0.1999]
[1757620379926,0.7364,4430.7,4430.6,0.4922]
[1757620381223,0.7364,4430.7,4430.1,0.2923]
[1757620381924,0.7364,4430.7,4430.6,0.1999]
[1757620382229,0.7364,4430.7,4430.6,0.4922]
[1757620385234,0.3185,4430.4,4430.1,0.2923]
[1757620385428,0.7314,4430.2,4429.6,0.2923]
[1757620385627,0.1166,4430.5,4429.1,0.2923]
[1757620385628,0.7314,4429.7,4429.1,0.2923]
[1757620386026,0.7314,4429.7,4429.6,0.1999]
[1757620386335,0.7314,4429.7,4429.6,0.4922]
[1757620387228,0.3185,4430.0,4429.7,0.2923]
[1757620387433,0.3185,4430.0,4429.9,0.6935]
[1757620387434,0.7314,4430.0,4429.9,0.6935]
[1757620388234,0.848,4430.0,4429.0,0.1214]
[1757620388430,0.848,4430.0,4429.1,0.2923]
[1757620388828,0.4129,4429.2,4429.1,0.6935]
[1757620389029,0.7314,4429.2,4429.1,0.6935]
[1757620391035,0.7314,4429.2,4428.2,0.41120622]
[1757620391228,0.7314,4429.2,4428.6,0.2923]
[1757620391623,0.7314,4429.2,4429.1,0.4922]
[1757620391828,0.7314,4429.2,4429.1,0.6935]
[1757620404456,0.7314,4429.2,4429.1,0.4922]
[1757620404650,0.2134,4428.2,4428.1,0.4936]
[1757620404956,0.7314,4428.2,4428.1,0.6935]
[1757620405557,0.1166,4429.0,4428.2,0.2923]
[1757620405762,0.3185,4428.9,4428.2,0.2923]
[1757620407354,0.1995,4428.3,4428.2,0.6935]
[1757620408864,0.5211,4428.3,4428.2,0.6935]
[1757620409064,0.729,4428.3,4428.2,0.6935]
[1757620414067,0.729,4428.3,4427.6,0.3216]
[1757620414265,0.7303,4427.2,4427.1,0.4111]
[1757620414762,0.7303,4427.2,4427.1,0.7327]
[1757620415470,0.2008,4427.2,4427.1,0.7327]
[1757620415862,0.5224,4427.2,4427.1,0.7327]
[1757620416261,0.7303,4427.2,4426.6,0.3216]
[1757620419774,0.7303,4427.2,4427.1,0.5337]
[1757620420182,0.7303,4427.2,4427.1,0.7327]
[1757620420363,0.5303,4428.0,4427.9,0.2121]
[1757620420674,0.4087,4428.0,4427.9,0.7327]
[1757620420863,0.5303,4428.0,4427.9,0.5337]
[1757620421064,0.8519,4428.0,4427.5,0.1287]
[1757620421266,0.8519,4428.0,4427.6,0.3216]
[1757620422169,0.8519,4428.0,4427.5,0.1287]
[1757620422369,0.8519,4428.0,4427.6,0.3216]
[1757620422571,0.8519,4428.0,4427.5,0.1287]
[1757620423682,0.8519,4428.0,4427.6,0.3216]
[1757620424872,0.8519,4428.0,4427.1,0.3216]
[1757620425077,0.7303,4427.2,4427.1,0.5337]
[1757620425273,0.7303,4427.2,4427.1,0.7327]
[1757620425470,0.7303,4427.2,4426.5,0.1242]
[1757620425471,0.5303,4428.0,4427.9,0.2121]
[1757620425669,0.5303,4428.0,4427.9,0.5337]
[1757620426178,0.8519,4428.0,4427.9,0.5337]
[1757620427670,0.7303,4428.0,4427.9,0.7327]
[1757620428275,0.2008,4428.0,4427.9,0.7327]
[1757620428576,0.7303,4428.4,4428.3,0.7327]
[1757620428880,0.9242731,4428.4,4428.3,0.7327]
[1757620431879,0.9242731,4428.4,4428.3,0.2121]
[1757620432079,0.9242731,4428.4,4427.6,0.3216]
[1757620432375,0.7303,4428.2,4428.1,0.5337]
[1757620432579,0.9242731,4428.2,4428.1,0.5337]
[1757620432879,0.9242731,4428.2,4428.1,0.7327]
[1757620433779,0.9242731,4428.2,4427.6,0.3216]
[1757620433981,0.7303,4427.7,4427.6,0.7327]
[1757620435169,0.1216,4429.5,4427.6,0.4111]
[1757620435375,0.7303,4428.8,4428.7,0.7327]
[1757620435668,0.2008,4428.8,4428.7,0.7327]
[1757620435874,0.5224,4428.8,4428.7,0.7327]
[1757620440876,0.2008,4428.8,4428.7,0.7327]
[1757620441284,0.5138,4428.8,4428.7,0.7327]
[1757620441983,0.9516,4429.4,4429.3,0.4281]
[1757620442287,0.9516,4429.4,4429.3,0.7444]
[1757620443082,0.9516,4429.4,4429.3,0.5299]
[1757620447381,0.9516,4429.4,4429.3,0.7444]
[1757620447582,0.7497,4429.7,4429.6,0.7444]
[1757620447777,0.9516,4429.7,4429.6,0.7444]
[1757620448685,0.2087,4428.7,4428.6,0.7444]
[1757620449078,0.1272,4429.5,4428.6,0.4281]
[1757620449273,0.7236,4429.4,4429.3,0.2136]
[1757620449586,0.7236,4429.4,4429.3,0.5299]
[1757620450279,0.2087,4429.4,4429.3,0.7444]
[1757620450485,0.2087,4429.4,4429.0,0.1197]
[1757620450486,0.9516,4429.9,4429.8,0.2136]
[1757620450685,0.9516,4429.9,4429.8,0.7444]
[1757620452496,0.7497,4429.9,4429.8,0.7444]
[1757620452677,0.9516,4429.9,4429.8,0.7444]
[1757620453284,0.2087,4429.9,4429.8,0.7444]
[1757620453480,0.2087,4429.9,4429.5,0.1197]
[1757620453481,0.5217,4430.2,4430.1,0.4281]
[1757620453681,0.5217,4430.2,4430.1,0.7444]
[1757620454686,0.7236,4430.2,4430.1,0.7444]
[1757620455481,0.7236,4430.2,4429.0,0.1197]
[1757620455482,0.1272,4430.0,4429.0,0.1197]
[1757620455694,0.7236,4429.1,4429.0,0.4281]
[1757620456085,0.7236,4429.1,4429.0,0.7444]
[1757620460390,0.5149,4428.2,4428.1,0.7444]
[1757620460695,0.7236,4428.2,4428.1,0.7444]
[1757620462799,0.2087,4428.2,4428.1,0.7444]
[1757620463296,0.7236,4428.2,4428.1,0.7444]
[1757620464000,0.7236,4428.2,4427.6,0.3163]
[1757620464593,0.7236,4428.2,4428.1,0.2136]
[1757620464800,0.7236,4428.2,4428.1,0.5299]
[1757620464996,0.7236,4428.2,4427.0,0.2927]
[1757620465188,0.313,4427.9,4427.1,0.5299]
[1757620465396,0.2087,4427.2,4427.1,0.7444]
[1757620466000,0.313,4427.4,4427.1,0.7444]
[1757620466202,0.313,4427.4,4427.1,0.4281]
[1757620466404,0.313,4427.8,4427.4,0.3163]
[1757620466598,0.8508,4428.0,4427.9,0.5299]
[1757620466790,0.8508,4428.0,4427.9,0.2136]
[1757620467697,0.8508,4428.0,4427.6,0.2988]
[1757620468601,0.8508,4428.0,4427.5,0.1197]
[1757620468904,0.7043,4427.9,4427.8,0.2037]
[1757620469203,0.7043,4427.9,4427.8,0.5025]
[1757620480209,0.1272,4428.5,4427.8,0.7002]
[1757620480210,0.3002,4428.3,4427.8,0.7002]
[1757620480510,0.7043,4428.9,4428.0,0.121]
[1757620480813,0.7043,4428.9,4428.1,0.2988]
[1757620484212,0.3002,4429.3,4427.0,0.4198]
[1757620484412,0.3002,4428.9,4427.2,0.2988]
[1757620484609,0.7043,4427.3,4427.2,0.7002]
[1757620487815,0.4275,4428.0,4426.2,0.2988]
[1757620488118,0.3002,4427.9,4426.3,0.2988]
[1757620488316,0.1273,4428.0,4426.3,0.22588]
[1757620488618,0.3002,4427.9,4426.4,0.22588]
[1757620488820,0.3002,4427.9,4426.3,0.2988]
[1757620489207,0.3002,4427.9,4426.5,0.4198]
[1757620489412,0.3002,4427.9,4426.6,0.2988]
[1757620489813,0.3002,4427.9,4426.8,0.2988]
[1757620490215,0.1953,4426.9,4426.8,0.5025]
[1757620490410,0.1273,4428.0,4427.1,0.7002]
[1757620490608,0.1953,4427.3,4427.2,0.7002]
[1757620490816,0.4955,4427.3,4427.2,0.7002]
[1757620492315,0.7043,4427.3,4427.2,0.7002]
[1757620495820,0.3002,4427.9,4427.3,0.2988]
[1757620496023,0.3002,4427.9,4427.8,0.7002]
[1757620496024,0.8353,4427.9,4427.8,0.7002]
[1757620496231,1.41745845,4427.9,4427.8,0.7002]
[1757620496619,1.41745845,4427.9,4427.1,0.2988]
[1757620496814,0.58217202,4427.8,4427.1,0.2988]
[1757620497020,0.8353,4427.9,4427.1,0.2988]
[1757620497221,0.58217202,4427.8,4427.1,0.2988]
[1757620497422,0.8353,4427.9,4427.1,0.2988]
[1757620497627,0.3045,4427.7,4427.1,0.2988]
[1757620498021,0.7014,4427.7,4427.6,0.515]
[1757620500330,0.3045,4428.8,4428.0,0.1197]
[1757620500630,1.28347522,4428.7,4428.6,0.1942]
[1757620500937,0.7014,4427.7,4427.3,0.3208]
[1757620501229,0.7014,4427.7,4426.2,2.03309212]
[1757620501431,0.7014,4426.7,4426.6,0.7178]
[1757620501622,0.2013,4426.7,4426.6,0.7178]
[1757620501819,0.3045,4427.0,4426.7,0.3208]
[1757620502132,0.3045,4427.0,4426.5,0.1197]
[1757620502133,0.7014,4427.0,4426.9,0.397]
[1757620502329,0.7014,4427.0,4426.9,0.7178]
[1757620502525,0.3045,4427.3,4427.0,0.1197]
[1757620502733,0.5253,4427.5,4427.4,0.1942]
[1757620503131,1.41182555,4427.5,4427.4,0.1942]
[1757620503333,0.7014,4427.5,4427.4,0.7178]
[1757620504231,0.8298,4427.5,4427.1,0.3208]
[1757620504829,0.8298,4427.5,4427.0,0.1197]
[1757620505128,0.8298,4427.5,4427.1,0.3208]
[1757620505331,0.8298,4427.5,4427.0,0.1197]
[1757620505634,0.8298,4427.5,4427.4,0.1942]
[1757620506127,0.7014,4427.5,4427.4,0.515]
[1757620506529,0.7014,4427.5,4427.4,0.7178]
[1757620508633,0.8298,4427.5,4427.1,0.3208]
[1757620509229,0.8298,4427.5,4426.6,0.3208]
[1757620509629,0.3969,4426.7,4426.6,0.515]
[1757620509833,0.7014,4426.7,4426.6,0.7178]
[1757620513034,0.3045,4425.9,4425.5,0.18037432]
[1757620513234,0.1284,4425.0,4424.9,2.03309212]
[1757620513437,0.4329,4425.0,4424.8,0.22597]
[1757620513638,0.4329,4425.0,4424.8,2.06811839]
[1757620513933,0.4329,4425.0,4424.9,0.22599]
[1757620514737,0.4329,4425.0,4424.8,0.17671382]
[1757620514937,0.3045,4424.9,4424.8,0.17671382]
[1757620517238,0.1284,4425.0,4424.8,6.01145241]
[1757620517442,0.3045,4424.9,4424.8,4.17671382]
[1757620517740,0.3045,4424.9,4424.8,4.0]
[1757620518129,0.029,4426.4,4424.8,4.0]
[1757620518341,0.3045,4424.4,4424.0,2.03309212]
[1757620518529,0.5058,4424.4,4424.0,1.83832404]
[1757620518735,0.1284,4424.0,4423.9,41.21251638]
[1757620518941,0.4329,4424.0,4423.9,0.41251638]
[1757620519837,0.3045,4423.9,4423.7,0.228]
[1757620520637,0.1284,4424.0,4423.7,0.228]
[1757620521032,0.3045,4423.9,4423.7,0.228]
[1757620521229,0.1284,4424.0,4423.7,0.228]
[1757620521428,0.3045,4423.9,4423.7,0.228]
[1757620523256,0.3045,4424.4,4423.7,0.8194246]
[1757620523841,0.3045,4424.4,4423.7,0.4126246]
[1757620524060,0.1284,4424.5,4423.7,0.8194146]
[1757620524238,0.3045,4424.4,4423.7,0.8194146]
[1757620524439,0.1284,4424.5,4423.7,0.8194146]
[1757620524640,0.1284,4424.5,4423.8,0.40679]
[1757620524944,0.3045,4424.4,4423.8,0.40679]
[1757620525245,0.1284,4424.5,4423.9,4.0]
[1757620525446,0.1284,4424.5,4423.9,4.40678]
[1757620525749,0.1284,4424.5,4424.0,0.40677]
[1757620525947,0.1284,4424.5,4424.1,0.40676]
[1757620526248,0.1284,4424.5,4424.2,0.63475]
[1757620526446,0.1284,4425.0,4424.3,0.40674]
[1757620526752,0.1284,4426.0,4425.9,0.7178]
[1757620527043,0.3297,4426.0,4425.9,0.7178]
[1757620527344,0.5253,4426.0,4425.9,0.1942]
[1757620527540,0.5253,4426.0,4425.5,0.2]
[1757620527741,0.5253,4426.0,4425.9,0.2052]
[1757620528352,0.5253,4426.0,4425.6,0.2929]
[1757620528543,0.5253,4426.0,4425.5,0.2]
[1757620528843,0.6967,4425.6,4425.5,0.4052]
[1757620529354,0.1284,4426.0,4425.0,0.699]
[1757620529355,0.6967,4425.1,4425.0,0.699]
[1757620529646,0.1284,4427.0,4425.0,0.699]
[1757620529647,0.1284,4427.0,4426.5,0.2929]
[1757620529849,0.2911,4427.1,4427.0,0.699]
[1757620530246,0.1184,4427.5,4427.0,0.699]
[1757620530446,0.1184,4427.5,4427.3,0.4061]
[1757620530447,0.2911,4427.4,4427.3,0.4061]
[1757620530650,0.4881,4427.4,4427.3,0.699]
[1757620531044,0.6967,4427.4,4427.3,0.4061]
[1757620533741,0.4881,4427.4,4427.3,0.699]
[1757620533941,0.2911,4427.4,4427.3,0.699]
[1757620534355,0.4881,4427.4,4427.3,0.699]
[1757620534653,0.6967,4427.4,4427.3,0.4061]
[1757620535754,0.2911,4427.4,4427.3,0.699]
[1757620535963,0.1184,4428.0,4427.3,0.699]
[1757620536260,0.6967,4427.9,4427.8,0.2052]
[1757620538859,0.6967,4427.9,4427.8,0.699]
[1757620539360,0.4881,4427.9,4427.8,0.699]
[1757620540061,0.2911,4427.9,4427.8,0.699]
[1757620540252,0.1184,4428.5,4427.8,0.699]
[1757620540454,0.197,4428.4,4428.3,0.4061]
[1757620540648,0.6967,4428.4,4428.3,0.4061]
[1757620542262,0.1184,4429.0,4428.3,0.699]
[1757620542457,0.2911,4428.9,4428.3,0.699]
[1757620542857,0.1184,4429.0,4428.3,0.699]
[1757620543060,0.6967,4428.4,4428.3,0.4061]
[1757620543259,0.4881,4427.5,4427.4,2.48967191]
[1757620543564,0.2911,4427.9,4427.4,0.5881]
[1757620543756,0.1184,4428.0,4427.9,0.4061]
[1757620543757,0.8151,4428.0,4427.9,0.4061]
[1757620544369,0.8151,4428.0,4427.4,0.2929]
[1757620544666,0.8151,4428.0,4427.9,0.2052]
[1757620546363,0.8151,4428.0,4427.9,0.699]
[1757620547264,0.8151,4428.0,4427.9,0.4061]
[1757620548467,0.8151,4428.0,4427.9,0.2052]
[1757620548864,0.524,4428.0,4427.4,40.8]
[1757620549071,0.4095,4427.5,4427.4,40.8]
[1757620549368,0.6065,4427.5,4427.4,0.4061]
[1757620549571,0.6065,4427.5,4427.4,0.699]
[1757620550464,0.8151,4427.5,4427.4,0.4061]
[1757620550662,0.4056,4427.2,4426.6,0.2929]
[1757620550869,0.4056,4426.7,4426.6,0.2052]
[1757620551370,0.6967,4426.7,4426.6,0.2052]
[1757620551569,0.6967,4426.7,4426.1,0.228]
[1757620552670,0.6967,4426.7,4426.6,0.2052]
[1757620552867,0.4881,4426.7,4426.6,0.699]
[1757620554461,0.6967,4426.7,4426.6,0.4061]
[1757620554667,0.6967,4426.2,4426.1,0.927]
[1757620556169,0.4881,4426.2,4426.1,0.927]
[1757620558775,0.6967,4426.2,4426.1,0.228]
[1757620558968,0.6967,4426.2,4426.1,0.4364]
[1757620559170,0.6967,4426.2,4426.1,0.933]
[1757620561264,0.6967,4426.2,4426.1,0.639]
[1757620561876,0.6967,4426.2,4426.1,0.933]
[1757620563278,0.6967,4426.2,4426.1,0.639]
[1757620563471,0.6967,4426.2,4426.1,0.933]
[1757620564982,0.6967,4426.2,4426.1,0.639]
[1757620565181,0.6967,4426.2,4426.1,0.933]
[1757620565774,0.4881,4426.2,4426.1,0.933]
[1757620566279,0.6863,4426.2,4426.1,0.639]
[1757620566482,0.6863,4426.2,4425.7,0.294]
[1757620566784,0.6979,4425.2,4425.1,0.705]
[1757620566983,0.4997,4425.2,4425.1,0.705]
[1757620567188,0.2956,4425.5,4425.2,0.294]
[1757620567384,0.2956,4425.9,4425.6,0.294]
[1757620567688,0.5207,4426.5,4426.4,0.705]
[1757620568077,0.5207,4426.5,4426.4,0.2084]
[1757620569483,0.8163,4426.5,4426.4,0.2084]
[1757620569684,0.8163,4426.5,4426.4,0.5024]
[1757620569984,0.6979,4426.5,4426.4,0.705]
[1757620570881,0.2041,4426.5,4426.4,0.705]
[1757620571083,0.4997,4426.5,4426.4,0.705]
[1757620571384,0.6979,4426.5,4426.4,0.705]
[1757620574284,0.8247,4426.5,4425.6,0.294]
[1757620574783,0.1268,4426.0,4425.3,0.18251076]
[1757620574982,0.6979,4425.1,4425.0,0.5311]
[1757620575182,0.2041,4425.1,4425.0,0.5311]
[1757620575387,0.2956,4425.7,4425.0,0.5311]
[1757620575583,0.6979,4425.7,4425.6,0.2084]
[1757620575984,0.6979,4425.7,4425.4,0.294]
[1757620576185,0.4023,4425.7,4425.6,0.705]
[1757620576480,0.1268,4426.5,4425.6,0.705]
[1757620576680,0.2956,4426.4,4425.7,0.294]
[1757620576880,0.6979,4426.4,4426.3,0.2084]
[1757620577686,0.6979,4426.4,4426.3,0.5024]
[1757620577889,0.6979,4426.4,4426.3,0.705]
[1757620580591,0.6979,4426.4,4425.6,0.294]
[1757620583384,0.2041,4425.3,4425.2,0.933]
[1757620583980,0.6979,4425.3,4425.2,0.933]
[1757620584485,0.6979,4425.3,4425.2,0.5024]
[1757620584689,0.6979,4425.3,4425.2,0.2084]
[1757620585088,0.6979,4425.3,4425.2,0.5024]
[1757620589800,0.6979,4425.3,4425.2,0.705]
[1757620593590,0.6979,4425.3,4425.2,0.5024]
[1757620594083,0.6979,4425.3,4424.9,0.3147]
[1757620594290,0.7231,4424.9,4424.8,0.228]
[1757620594491,0.7231,4424.9,4424.8,0.4335]
[1757620595095,0.2038,4424.4,4424.3,0.4081]
[1757620595393,0.7231,4424.4,4424.3,0.7228]
[1757620597095,0.5267,4424.4,4424.3,0.7228]
[1757620597598,0.7231,4424.4,4424.3,0.7228]
[1757620602304,0.5267,4425.0,4424.9,0.4081]
[1757620602506,0.7231,4425.0,4424.9,0.7228]
[1757620605305,0.7231,4425.0,4424.4,0.228]
[1757620605306,0.8401,4425.0,4424.4,0.228]
[1757620606104,0.8401,4425.0,4424.5,0.3147]
[1757620606299,0.8401,4425.0,4424.4,0.228]
[1757620606507,0.5172,4425.0,4424.5,0.1186]
[1757620606805,0.7231,4424.9,4424.8,0.2055]
[1757620607006,0.7231,4424.9,4424.8,0.7228]
[1757620609003,0.7231,4424.9,4424.5,0.3147]
[1757620611209,0.7231,4424.9,4424.4,0.228]
[1757620611411,0.7231,4424.9,4424.5,0.3147]
[1757620611906,0.7231,4424.9,4424.4,0.228]
[1757620612105,0.7231,4424.9,4424.5,0.3147]
[1757620613204,0.2038,4424.2,4424.1,0.3147]
[1757620613409,0.7231,4424.2,4424.1,0.5202]
[1757620615011,0.7231,4424.2,4424.1,0.7228]
[1757620617803,0.2038,4424.2,4424.1,0.7228]
[1757620618208,0.3979,4425.0,4424.9,0.7277]
[1757620618816,0.7057,4425.0,4424.9,0.7277]
[1757620619221,32.55,4426.3,4425.0,0.1226]
[1757620619513,0.7057,4425.9,4425.8,0.7277]
[1757620619712,0.1233,4427.0,4425.8,0.7277]
[1757620619713,0.3078,4426.2,4425.8,0.4096]
[1757620620014,0.7057,4426.2,4426.1,0.7277]
[1757620620219,0.7057,4426.2,4425.6,0.3181]
[1757620620820,0.3078,4426.1,4425.3,0.228]
[1757620621112,0.7057,4425.4,4425.3,0.7277]
[1757620621317,0.7057,4425.4,4425.3,0.1991]
[1757620621711,0.7057,4425.4,4425.3,0.5172]
[1757620622121,0.7057,4425.4,4425.0,0.3181]
[1757620622823,0.7057,4425.4,4424.9,0.228]
[1757620623520,0.7057,4425.4,4425.0,0.3181]
[1757620623823,0.3979,4424.7,4424.3,2.02037408]
[1757620624018,0.829,4424.5,4424.4,0.1991]
[1757620624524,0.829,4424.5,4424.4,0.5172]
[1757620625318,0.5212,4424.5,4424.0,0.228]
[1757620625519,0.7057,4424.1,4424.0,0.7452]
[1757620625827,0.7057,4424.1,4424.0,0.9557]
[1757620626727,0.2003,4424.1,4424.0,1.0783]
[1757620628427,0.5081,4424.9,4424.1,0.3181]
[1757620629923,0.3979,4424.2,4424.1,0.7277]
[1757620630128,0.7057,4424.2,4424.1,0.7277]
[1757620632030,0.2003,4424.2,4424.1,0.7277]
[1757620632335,0.5081,4424.2,4424.1,0.7277]
[1757620632930,0.2003,4424.2,4424.1,0.7277]
[1757620633131,0.3078,4424.5,4424.1,0.7277]